[Event "Early-Titled-Tuesday-Blitz-June-18-2024"]
[Site "Chess.com"]
[Date "2024.06.18"]
[Round "11"]
[White "gafkens"]
[Black "arctic_t00"]
[Result "0-1"]
[WhiteElo "2616"]
[BlackElo "2727"]
[TimeControl "180+1"]
[EndTime "10:10:43 PDT"]
[Termination "arctic_t00 won on time"]

1. e4 {[%clk 0:03:00.9]} 1... e5 {[%clk 0:02:27.3]} 2. Nf3 {[%clk 0:03:00.1]}
2... Nc6 {[%clk 0:02:27.5]} 3. d4 {[%clk 0:03:00.2]} 3... exd4 {[%clk
0:02:27.7]} 4. Nxd4 {[%clk 0:03:01.1]} 4... Bc5 {[%clk 0:02:28.1]} 5. Nb3 {[%clk
0:03:01.2]} 5... Bb6 {[%clk 0:02:28.4]} 6. Nc3 {[%clk 0:03:01.7]} 6... d6 {[%clk
0:02:28.5]} 7. Qe2 {[%clk 0:03:01.8]} 7... a5 {[%clk 0:02:28.8]} 8. a4 {[%clk
0:03:00.3]} 8... Nb4 {[%clk 0:02:28.8]} 9. Nd5 {[%clk 0:02:49.6]} 9... Nxd5
{[%clk 0:02:28.6]} 10. exd5+ {[%clk 0:02:50.5]} 10... Ne7 {[%clk 0:02:28.9]} 11.
Bg5 {[%clk 0:02:45.5]} 11... f6 {[%clk 0:02:19.5]} 12. Be3 {[%clk 0:02:42.3]}
12... Bxe3 {[%clk 0:02:17.6]} 13. Qxe3 {[%clk 0:02:43.2]} 13... O-O {[%clk
0:02:17.7]} 14. Qf3 {[%clk 0:02:32.9]} 14... Qe8 {[%clk 0:01:38.9]} 15. Be2
{[%clk 0:02:12.2]} 15... Qf7 {[%clk 0:01:38.7]} 16. O-O {[%clk 0:01:49.6]} 16...
Nxd5 {[%clk 0:01:26.5]} 17. Bc4 {[%clk 0:01:48]} 17... c6 {[%clk 0:01:19.6]} 18.
Rad1 {[%clk 0:01:45.6]} 18... Kh8 {[%clk 0:01:10.1]} 19. Bxd5 {[%clk 0:01:39.4]}
19... cxd5 {[%clk 0:01:09.6]} 20. Rxd5 {[%clk 0:01:02]} 20... Bg4 {[%clk
0:01:00.7]} 21. Qe4 {[%clk 0:01:02.2]} 21... Rfe8 {[%clk 0:00:45.5]} 22. Qd4
{[%clk 0:00:59]} 22... Qg6 {[%clk 0:00:35.2]} 23. Rxd6 {[%clk 0:00:28.2]} 23...
Bf3 {[%clk 0:00:35]} 24. g3 {[%clk 0:00:23.7]} 24... Qxc2 {[%clk 0:00:35.6]} 25.
Nd2 {[%clk 0:00:21.5]} 25... Bc6 {[%clk 0:00:32]} 26. Nc4 {[%clk 0:00:17.7]}
26... Qf5 {[%clk 0:00:19.3]} 27. Rxc6 {[%clk 0:00:11.7]} 27... bxc6 {[%clk
0:00:17.4]} 28. Nd6 {[%clk 0:00:12.3]} 28... Qd7 {[%clk 0:00:14.1]} 29. Rd1
{[%clk 0:00:10.5]} 29... Rf8 {[%clk 0:00:07.9]} 30. Qc4 {[%clk 0:00:07.6]} 30...
Qc7 {[%clk 0:00:05]} 31. Rd2 {[%clk 0:00:07.1]} 31... h6 {[%clk 0:00:03.9]} 32.
Kg2 {[%clk 0:00:07]} 32... Rab8 {[%clk 0:00:03.4]} 33. h4 {[%clk 0:00:06.5]}
33... Rb4 {[%clk 0:00:03.3]} 34. Qc5 {[%clk 0:00:07]} 34... Rg8 {[%clk
0:00:01.8]} 35. h5 {[%clk 0:00:05.5]} 35... Rxa4 {[%clk 0:00:02.1]} 36. Nf5
{[%clk 0:00:04.9]} 36... Rb4 {[%clk 0:00:01.9]} 37. Ne7 {[%clk 0:00:05.1]} 37...
Re8 {[%clk 0:00:01.8]} 38. Ng6+ {[%clk 0:00:05.8]} 38... Kh7 {[%clk 0:00:02.4]}
39. Qf5 {[%clk 0:00:06.2]} 39... Kg8 {[%clk 0:00:02.2]} 40. Qc5 {[%clk 0:00:05]}
40... Rb5 {[%clk 0:00:01.9]} 41. Qc4+ {[%clk 0:00:05.2]} 41... Qf7 {[%clk
0:00:01.9]} 42. Qd3 {[%clk 0:00:06]} 42... Qd5+ {[%clk 0:00:01.1]} 43. Kh2
{[%clk 0:00:04.9]} 43... Qxd3 {[%clk 0:00:01.4]} 44. Rxd3 {[%clk 0:00:05.8]}
44... Rd5 {[%clk 0:00:02]} 45. Ra3 {[%clk 0:00:05.8]} 45... Ra8 {[%clk
0:00:02.2]} 46. Rc3 {[%clk 0:00:06]} 46... Kf7 {[%clk 0:00:02.5]} 47. Rxc6
{[%clk 0:00:06.2]} 47... Rd7 {[%clk 0:00:02.6]} 48. Nf4 {[%clk 0:00:06.3]} 48...
a4 {[%clk 0:00:02.7]} 49. Rc2 {[%clk 0:00:06.5]} 49... a3 {[%clk 0:00:03.1]} 50.
bxa3 {[%clk 0:00:06.5]} 50... Rxa3 {[%clk 0:00:03.8]} 51. Kg2 {[%clk 0:00:07.4]}
51... Ra8 {[%clk 0:00:03.6]} 52. Re2 {[%clk 0:00:07.9]} 52... Re8 {[%clk
0:00:03.7]} 53. Ra2 {[%clk 0:00:08.6]} 53... Red8 {[%clk 0:00:04]} 54. Ra5
{[%clk 0:00:09.2]} 54... Rd4 {[%clk 0:00:03.8]} 55. Ra6 {[%clk 0:00:09.7]} 55...
R8d7 {[%clk 0:00:04.1]} 56. Ra5 {[%clk 0:00:09.4]} 56... Re4 {[%clk 0:00:04.2]}
57. Ng6 {[%clk 0:00:08.8]} 57... Red4 {[%clk 0:00:04.1]} 58. Nf4 {[%clk
0:00:08.9]} 58... Re4 {[%clk 0:00:04.2]} 59. Rb5 {[%clk 0:00:09]} 59... Re5
{[%clk 0:00:04.3]} 60. Rb6 {[%clk 0:00:09]} 60... Ke8 {[%clk 0:00:02.7]} 61.
Rb8+ {[%clk 0:00:08.7]} 61... Kf7 {[%clk 0:00:03.1]} 62. Rb6 {[%clk 0:00:09.6]}
62... Rc5 {[%clk 0:00:03]} 63. Rb4 {[%clk 0:00:10.1]} 63... Re5 {[%clk
0:00:03.5]} 64. Rc4 {[%clk 0:00:10.3]} 64... Rb5 {[%clk 0:00:03.4]} 65. Rc2
{[%clk 0:00:10.7]} 65... Ra5 {[%clk 0:00:03.7]} 66. Re2 {[%clk 0:00:10.8]} 66...
Ra4 {[%clk 0:00:03.9]} 67. Rb2 {[%clk 0:00:10.8]} 67... Rad4 {[%clk 0:00:04.1]}
68. Ng6 {[%clk 0:00:10]} 68... R4d5 {[%clk 0:00:03.9]} 69. Nf4 {[%clk
0:00:09.8]} 69... Rf5 {[%clk 0:00:04.4]} 70. Re2 {[%clk 0:00:09.5]} 70... Rxf4
{[%clk 0:00:04.7]} 71. gxf4 {[%clk 0:00:09.7]} 71... Rd5 {[%clk 0:00:05.3]} 72.
Kg3 {[%clk 0:00:08.3]} 72... Rxh5 {[%clk 0:00:05.8]} 73. Ra2 {[%clk 0:00:08.7]}
73... Rd5 {[%clk 0:00:05.8]} 74. Ra7+ {[%clk 0:00:08.6]} 74... Kg6 {[%clk
0:00:06.4]} 75. Rb7 {[%clk 0:00:08.7]} 75... h5 {[%clk 0:00:06.9]} 76. f3 {[%clk
0:00:08.1]} 76... Rd3 {[%clk 0:00:07.2]} 77. Ra7 {[%clk 0:00:08.2]} 77... Rc3
{[%clk 0:00:07.8]} 78. f5+ {[%clk 0:00:06.4]} 78... Kh6 {[%clk 0:00:07.1]} 79.
Rd7 {[%clk 0:00:05.5]} 79... Rc5 {[%clk 0:00:07.4]} 80. Kf4 {[%clk 0:00:05.2]}
80... Ra5 {[%clk 0:00:07.5]} 81. Rc7 {[%clk 0:00:05.2]} 81... Ra4+ {[%clk
0:00:08]} 82. Kg3 {[%clk 0:00:05.4]} 82... h4+ {[%clk 0:00:08.5]} 83. Kh3 {[%clk
0:00:05.9]} 83... Rf4 {[%clk 0:00:08.2]} 84. Rd7 {[%clk 0:00:03.2]} 84... Rxf5
{[%clk 0:00:08.2]} 85. Kg4 {[%clk 0:00:03.1]} 85... Rh5 {[%clk 0:00:07.4]} 86.
Kh3 {[%clk 0:00:03.1]} 86... g5 {[%clk 0:00:06.2]} 87. Kg4 {[%clk 0:00:02.9]}
87... Kg6 {[%clk 0:00:06.2]} 88. Rd6 {[%clk 0:00:02.9]} 88... Rh7 {[%clk
0:00:06.5]} 89. f4 {[%clk 0:00:02.7]} 89... gxf4 {[%clk 0:00:04.2]} 90. Kxf4
{[%clk 0:00:03]} 90... h3 {[%clk 0:00:04.7]} 91. Rd1 {[%clk 0:00:03.3]} 91... h2
{[%clk 0:00:04.9]} 92. Rh1 {[%clk 0:00:04]} 92... f5 {[%clk 0:00:04.4]} 93. Kg3
{[%clk 0:00:02.5]} 93... Kg5 {[%clk 0:00:05]} 94. Kf3 {[%clk 0:00:02.2]} 94...
Rh3+ {[%clk 0:00:04.6]} 95. Kg2 {[%clk 0:00:02.5]} 95... Rh4 {[%clk 0:00:05.3]}
96. Kg3 {[%clk 0:00:02.7]} 96... f4+ {[%clk 0:00:05.4]} 97. Kf3 {[%clk
0:00:02.7]} 97... Kf5 {[%clk 0:00:04.6]} 98. Kg2 {[%clk 0:00:01.9]} 98... Rg4+
{[%clk 0:00:03.8]} 99. Kf3 {[%clk 0:00:01.6]} 99... Rg3+ {[%clk 0:00:03.7]} 100.
Kf2 {[%clk 0:00:02.2]} 100... Rh3 {[%clk 0:00:04]} 101. Kg2 {[%clk 0:00:02.3]}
101... Kg4 {[%clk 0:00:04.3]} 102. Kf2 {[%clk 0:00:02.4]} 102... Rh4 {[%clk
0:00:04.1]} 103. Kg2 {[%clk 0:00:02.5]} 103... f3+ {[%clk 0:00:04.3]} 104. Kf2
{[%clk 0:00:02.9]} 104... Kf4 {[%clk 0:00:05]} 0-1